bitfinex/quotes_SOLUSD_20250305
["timestamp","ask_amount","ask_price","bid_price","bid_amount"]
[1741181776730,62.69902291,144.64,144.63,312.0]
[1741181777131,62.69902291,144.64,144.63,51.83410199]
[1741181777827,62.69902291,144.64,144.61,51.83410199]
[1741181778023,62.69902291,144.64,144.62,0.28432314]
[1741181778214,62.69902291,144.64,144.62,52.11842513]
[1741181778415,62.69902291,144.64,144.63,52.11842513]
[1741181778716,1.006,144.68,144.64,0.28432314]
[1741181779115,1.006,144.68,144.66,0.28432314]
[1741181779740,1.006,144.68,144.64,0.14216157]
[1741181779942,1.006,144.68,144.58,37.991]
[1741181779943,2.0,144.55,144.39,24.2398]
[1741181780143,2.0,144.55,144.43,51.83410199]
[1741181780309,1.81577557,144.65,144.42,312.0]
[1741181780310,2.0,144.54,144.42,312.0]
[1741181780514,2.0,144.54,144.43,51.83410199]
[1741181780818,2.0,144.54,144.42,51.83410199]
[1741181781021,2.0,144.54,144.45,0.28432314]
[1741181781218,2.0,144.54,144.44,0.28432314]
[1741181781622,2.0,144.54,144.44,52.11842513]
[1741181781822,20.64964886,144.55,144.45,51.83410199]
[1741181782026,2.0,144.55,144.47,51.83410199]
[1741181782419,22.0,144.55,144.48,0.28432314]
[1741181782614,22.0,144.55,144.47,51.83410199]
[1741181782954,22.0,144.55,144.47,0.28432314]
[1741181783534,22.0,144.55,144.47,7.20612314]
[1741181783825,22.0,144.55,144.48,312.0]
[1741181784835,2.0,144.54,144.48,312.0]
[1741181785360,18.64964886,144.53,144.48,312.0]
[1741181785658,2.0,144.52,144.42,51.83410199]
[1741181785820,6.8569,144.53,144.42,0.28432314]
[1741181786028,6.8569,144.53,144.47,0.28432314]
[1741181786421,6.8569,144.53,144.47,52.11842513]
[1741181786927,6.8569,144.53,144.49,0.28432314]
[1741181787445,8.6992,144.61,144.5,51.83410199]
[1741181787755,8.6992,144.61,144.53,0.28432314]
[1741181788128,6.6992,144.61,144.53,0.28432314]
[1741181788632,6.6992,144.61,144.54,312.0]
[1741181789031,6.6992,144.61,144.54,0.28432314]
[1741181789248,6.6992,144.61,144.56,0.28432314]
[1741181789826,6.6992,144.61,144.56,52.11842513]
[1741181791356,6.6992,144.61,144.55,51.83410199]
[1741181791526,6.6992,144.61,144.48,51.83410199]
[1741181791527,3.006,144.68,144.57,52.11842513]
[1741181791734,3.006,144.68,144.59,0.28432314]
[1741181791943,1.006,144.68,144.61,0.28432314]
[1741181792148,3.006,144.68,144.61,0.28432314]
[1741181792459,3.006,144.68,144.59,0.28432314]
[1741181792636,2.0,144.66,144.56,51.83410199]
[1741181792837,22.0,144.65,144.57,0.28432314]
[1741181793152,20.0,144.65,144.58,0.28432314]
[1741181793345,1.006,144.68,144.59,76.04040199]
[1741181793655,3.006,144.68,144.59,76.04040199]
[1741181793950,1.006,144.68,144.59,76.04040199]
[1741181794347,1.006,144.68,144.6,0.28432314]
[1741181794732,1.006,144.68,144.6,52.11842513]
[1741181794939,1.006,144.68,144.62,0.28432314]
[1741181795143,1.006,144.68,144.63,51.83410199]
[1741181795646,0.03,144.65,144.64,24.48222314]
[1741181796153,1.006,144.68,144.64,76.31632513]
[1741181797424,1.006,144.68,144.67,7.19652314]
[1741181798035,1.006,144.68,144.63,51.83410199]
[1741181798254,1.006,144.68,144.62,55.271]
[1741181798255,1.006,144.68,144.64,51.83410199]
[1741181798653,1.006,144.68,144.65,51.83410199]
[1741181798852,1.006,144.68,144.66,51.83410199]
[1741181799050,1.006,144.68,144.65,51.83410199]
[1741181799358,1.006,144.68,144.66,312.0]
[1741181799928,1.006,144.68,144.67,6.9122]
[1741181800137,1.006,144.68,144.67,7.19652314]
[1741181800846,10.0625,144.75,144.68,0.28432314]
[1741181800847,6.6808,144.75,144.68,0.28432314]
[1741181801157,6.6808,144.75,144.7,0.28432314]
[1741181801854,6.6808,144.75,144.71,6.9103]
[1741181802055,6.6808,144.75,144.7,0.14216157]
[1741181802233,6.6808,144.75,144.72,0.14216157]
[1741181802644,6.6808,144.75,144.69,0.14216157]
[1741181802843,8.7533,144.75,144.67,0.14216157]
[1741181803051,6.6808,144.75,144.68,0.14216157]
[1741181803252,6.6808,144.75,144.69,51.83410199]
[1741181803437,6.6808,144.75,144.7,0.14216157]
[1741181804177,6.6808,144.75,144.69,0.14216157]
[1741181804342,2.0,144.79,144.72,0.14216157]
[1741181804950,4.0719,144.79,144.7,0.28432314]
[1741181805153,2.0,144.78,144.7,0.28432314]
[1741181805362,2.0,144.79,144.7,52.11842513]
[1741181805866,2.0,144.79,144.72,0.28432314]
[1741181806038,2.0,144.79,144.74,0.14216157]
[1741181806654,20.0,144.78,144.74,312.14216157]
[1741181806857,0.03,144.8,144.75,0.14216157]
[1741181807936,0.03,144.79,144.76,6.9079]
[1741181808343,0.03,144.79,144.75,0.14216157]
[1741181808344,0.03,144.79,144.75,6.9082]
[1741181808743,0.03,144.79,144.72,0.14216157]
[1741181809156,0.03,144.79,144.72,0.28432314]
[1741181809857,0.03,144.79,144.74,0.14216157]
[1741181810049,0.03,144.79,144.76,0.28432314]
[1741181811940,0.03,144.79,144.76,52.11842513]
[1741181812140,0.03,144.79,144.78,0.14216157]
[1741181812640,0.03,144.79,144.78,0.28432314]
[1741181812848,0.03,144.8,144.78,52.11842513]
[1741181814667,0.03,144.8,144.79,7.04866157]
[1741181814839,0.03,144.8,144.79,58.88276356]
[1741181815462,7.7903,144.87,144.83,0.14216157]
[1741181815782,7.7903,144.87,144.84,0.14216157]
[1741181816752,7.7903,144.87,144.82,0.28432314]
[1741181817157,7.7903,144.87,144.82,0.14216157]
[1741181817367,7.7903,144.87,144.81,6.9056]
[1741181817569,7.7903,144.87,144.82,0.14216157]
[1741181818873,7.7903,144.87,144.83,6.9046]
[1741181819208,7.7903,144.87,144.82,0.14216157]
[1741181819492,7.7903,144.87,144.82,0.28432314]
[1741181819668,2.0,144.93,144.85,0.14216157]
[1741181820499,7.7105,144.94,144.86,0.28432314]
[1741181820711,7.7105,144.94,144.86,52.11842513]
[1741181820860,7.7105,144.94,144.88,0.14216157]
[1741181821063,7.7105,144.94,144.88,52.11842513]
[1741181821269,7.7105,144.94,144.88,0.28432314]
[1741181821883,2.0,144.93,144.87,6.9027]
[1741181822188,2.0,144.92,144.87,6.9027]
[1741181822479,2.0,144.89,144.83,6.9046]
[1741181822783,2.0,144.88,144.81,0.28432314]
[1741181822955,22.0,144.9,144.83,0.14216157]
[1741181823683,22.0,144.9,144.82,6.9051]
[1741181823684,2.0,144.88,144.82,6.9051]
[1741181823989,2.0,144.87,144.82,6.9051]
[1741181824171,22.0,144.89,144.83,0.14216157]
[1741181824389,2.0,144.9,144.83,0.14216157]
[1741181824589,2.0,144.9,144.83,0.28432314]
[1741181824791,2.0,144.9,144.83,0.14216157]
[1741181824792,4.0704,144.9,144.83,0.14216157]
[1741181824989,22.0,144.9,144.82,0.28432314]
[1741181825403,2.0,144.91,144.82,52.11842513]
[1741181825586,2.0,144.92,144.84,0.14216157]
[1741181825775,7.7105,144.94,144.87,0.28432314]
[1741181825975,7.7105,144.94,144.88,0.28432314]
[1741181826483,13.059,144.99,144.93,0.28432314]
[1741181826690,7.9145,144.99,144.93,0.28432314]
[1741181826871,9.9836,144.99,144.91,51.83410199]
[1741181827072,20.64964886,144.97,144.9,0.14216157]
[1741181827699,2.0,144.98,144.9,51.97626356]
[1741181827870,9.9145,144.99,144.92,0.28432314]
[1741181828078,7.9145,144.99,144.92,0.28432314]
[1741181828295,7.9145,144.99,144.93,0.14216157]
[1741181828602,7.9145,144.99,144.94,0.14216157]
[1741181829082,9.9145,144.99,144.94,319.04136157]
[1741181829681,7.9145,144.99,144.94,319.04136157]
[1741181829905,7.9145,144.99,144.94,336.28986157]
[1741181830204,7.9145,144.99,144.94,24.28986157]
[1741181830414,7.9145,144.99,144.95,0.14216157]
[1741181830595,7.9145,144.99,144.94,7.04136157]
[1741181831086,7.9145,144.99,144.94,24.28986157]
[1741181831678,2.0,144.98,144.93,0.14216157]
[1741181831892,2.0,144.98,144.93,6.8997]
[1741181832401,2.0,144.97,144.89,24.29826157]
[1741181832707,2.0,144.97,144.9,0.14216157]
[1741181833003,2.0,144.95,144.86,17.2901]
[1741181833182,24.0696,144.96,144.87,0.28432314]
[1741181833386,2.0,144.95,144.87,0.28432314]
[1741181833706,22.0696,144.96,144.87,0.28432314]
[1741181833707,2.0,144.94,144.87,0.28432314]
[1741181834006,20.0,144.96,144.9,0.28432314]
[1741181834407,2.0,144.98,144.9,52.11842513]
[1741181834611,2.0,144.98,144.92,0.28432314]
[1741181834814,9.9445,144.99,144.92,0.28432314]
[1741181835333,12.0136,144.99,144.94,0.14216157]
[1741181835621,2.0,144.98,144.9,0.14216157]
[1741181835792,2.0,144.97,144.9,0.14216157]
[1741181835994,20.0,144.96,144.9,0.14216157]
[1741181836187,22.0,144.96,144.89,0.28432314]
[1741181836505,20.0,144.94,144.87,6.9027]
[1741181836705,22.0,144.94,144.87,6.9027]
[1741181836911,2.0,144.93,144.87,6.9027]
[1741181837208,2.0,144.93,144.89,6.9017]
[1741181837381,2.0,144.93,144.86,312.033]
[1741181837582,22.0698,144.94,144.86,318.9361]
[1741181837583,2.0,144.91,144.86,318.9361]
[1741181837832,2.0,144.9,144.86,0.033]
[1741181837993,2.0,144.89,144.86,0.033]
[1741181838691,2.0,144.91,144.87,0.14216157]
[1741181838911,33.124,144.94,144.87,0.14216157]
[1741181839117,33.124,144.94,144.88,6.9022]
[1741181839520,33.124,144.94,144.89,0.14216157]
[1741181839521,20.0,144.94,144.89,0.14216157]
[1741181839723,18.64964886,144.95,144.89,0.14216157]
[1741181840236,20.71934886,144.95,144.89,0.14216157]
[1741181840540,22.0,144.92,144.86,0.033]
[1741181840836,8.0799,144.89,144.86,0.033]
[1741181841501,8.0799,144.89,144.86,0.17516157]
[1741181841725,7.61,144.94,144.87,0.28432314]
[1741181842536,7.61,144.94,144.87,52.11842513]
[1741181842722,7.61,144.94,144.86,0.033]
[1741181843062,7.61,144.94,144.86,0.17516157]
[1741181843409,9.6798,144.94,144.88,0.14216157]
[1741181843611,7.61,144.94,144.88,0.28432314]
[1741181843816,7.61,144.94,144.88,312.28432314]
[1741181844340,7.61,144.94,144.88,0.28432314]
[1741181845203,20.64964886,144.92,144.86,0.033]
[1741181845402,2.0,144.9,144.86,0.033]
[1741181845828,2.0,144.92,144.86,0.033]
[1741181846016,2.0,144.93,144.86,0.033]
[1741181846223,22.0,144.91,144.86,0.033]
[1741181846504,20.0,144.91,144.86,0.033]
[1741181847129,7.61,144.94,144.87,0.14216157]
[1741181847432,9.61,144.94,144.9,6.9013]
[1741181848430,9.61,144.94,144.86,0.17516157]
[1741181848431,2.0,144.93,144.86,0.17516157]
[1741181848745,20.64964886,144.92,144.86,0.033]
[1741181848911,20.64964886,144.92,144.86,6.936]
[1741181849543,2.0,144.9,144.86,0.033]
[1741181849708,22.0,144.89,144.86,0.033]
[1741181850038,2.0,144.87,144.86,0.033]
[1741181850239,2.0,144.88,144.86,0.033]
[1741181850420,2.0,144.87,144.86,0.033]
[1741181850623,2.0,144.88,144.86,0.033]
[1741181852442,2.0,144.91,144.86,0.033]
[1741181852614,2.0,144.93,144.87,0.14216157]
[1741181852817,28.25964886,144.94,144.87,0.28432314]
[1741181853013,9.61,144.94,144.87,0.14216157]
[1741181853430,2.0,144.93,144.87,0.14216157]
[1741181853649,2.0,144.93,144.88,6.9022]
[1741181854144,2.0,144.93,144.86,0.033]
[1741181854145,18.64964886,144.92,144.86,0.033]
[1741181854324,18.64964886,144.92,144.86,6.936]
[1741181854639,2.0,144.93,144.87,0.28432314]
[1741181855344,2.0,144.93,144.87,0.14216157]
[1741181855536,2.0,144.91,144.87,312.0]
[1741181855836,2.0,144.9,144.86,0.033]
[1741181856018,2.0,144.88,144.86,0.033]
[1741181856214,20.64964886,144.87,144.86,0.033]
[1741181857016,2.0,144.88,144.86,0.033]
[1741181857216,2.0,144.9,144.86,0.033]
[1741181857428,18.64964886,144.87,144.86,0.033]
[1741181857623,22.72044886,144.87,144.86,0.033]
[1741181858044,20.64964886,144.87,144.86,0.033]
[1741181858222,22.72044886,144.87,144.86,0.033]
[1741181858550,20.64964886,144.87,144.86,0.033]
[1741181860642,22.72044886,144.87,144.86,0.033]
[1741181860847,20.64964886,144.87,144.86,0.033]
[1741181861643,22.72044886,144.87,144.86,0.033]
[1741181862235,20.0,144.87,144.86,0.033]
[1741181862422,22.0,144.87,144.86,0.033]
[1741181862937,2.0,144.87,144.86,0.033]
[1741181863137,4.0708,144.87,144.86,0.033]
[1741181863542,2.0,144.87,144.86,0.033]
[1741181864450,10.56972089,144.92,144.86,0.033]
[1741181864451,2.0,144.91,144.86,0.033]
[1741181864844,20.0,144.89,144.86,0.033]
[1741181865960,22.0,144.89,144.86,0.033]
[1741181866336,20.0,144.89,144.86,0.033]
[1741181867353,20.0,144.89,144.86,6.9362]
[1741181867556,22.0,144.89,144.86,0.033]
[1741181867747,2.0,144.88,144.86,0.033]
[1741181868051,2.0,144.87,144.86,0.033]
[1741181868256,2.0,144.9,144.86,0.033]
[1741181868855,22.0,144.89,144.86,0.033]
[1741181869553,2.0,144.87,144.86,0.033]
[1741181870846,2.0,144.88,144.86,0.033]
[1741181871642,2.0,144.9,144.86,0.033]
[1741181871862,0.03,144.92,144.86,0.033]
[1741181871863,2.0,144.91,144.86,0.033]
[1741181872065,0.03,144.89,144.86,0.033]
[1741181872734,0.03,144.89,144.87,0.14216157]
[1741181872935,2.03,144.89,144.86,0.033]
[1741181874142,2.0,144.87,144.86,0.033]
[1741181875755,22.0,144.87,144.86,0.033]
[1741181876268,40.64964886,144.87,144.86,0.033]
[1741181877059,42.72044886,144.87,144.86,0.033]
[1741181878147,2.0,144.85,144.76,44.42796632]
[1741181878445,2.0,144.82,144.77,6.9075]
[1741181878651,2.0,144.81,144.77,6.9075]
[1741181878961,2.0,144.83,144.78,0.14216157]
[1741181879665,2.0,144.85,144.78,0.28432314]
[1741181879861,2.0,144.83,144.78,0.14216157]
[1741181880257,2.0,144.79,144.74,318.9087]
[1741181880458,2.0,144.79,144.68,34.5567]
[1741181880459,2.0,144.76,144.69,17.2772]
[1741181880644,2.0,144.75,144.68,12.8228]
[1741181880848,2.0,144.72,144.63,69.11426632]
[1741181881165,2.0,144.72,144.64,32.37628946]
[1741181881368,9.6677,144.75,144.68,52.79196632]
[1741181881569,9.6677,144.75,144.67,32.09196632]
[1741181881966,7.6677,144.75,144.69,32.09196632]
[1741181882170,2.0,144.77,144.72,0.14216157]
[1741181882471,22.0,144.77,144.74,0.14216157]
[1741181882668,2.0,144.73,144.64,24.1979]
[1741181882867,2.0,144.72,144.64,56.28986632]
[1741181883077,2.0,144.73,144.64,56.28986632]
[1741181883255,2.0,144.73,144.66,32.09196632]
[1741181883458,2.0,144.73,144.68,0.28432314]
[1741181883955,2.0,144.74,144.68,0.28432314]
[1741181884155,2.0,144.75,144.7,0.14216157]
[1741181884397,2.0,144.77,144.72,0.28432314]
[1741181884563,2.0,144.77,144.73,0.28432314]
[1741181885254,2.0,144.78,144.72,0.28432314]
[1741181886364,2.0,144.77,144.73,6.9094]
[1741181886876,2.0,144.77,144.7,0.28432314]
[1741181887379,7.7406,144.8,144.7,344.37628946]
[1741181887380,2.0,144.78,144.7,344.37628946]
[1741181887878,2.0,144.76,144.7,312.28432314]
[1741181888084,2.0,144.75,144.7,312.28432314]
[1741181888272,2.0,144.76,144.72,0.14216157]
[1741181888464,22.0,144.75,144.69,7.05346157]
[1741181888658,2.0,144.74,144.69,6.9113]
[1741181888852,22.0,144.75,144.69,6.9113]
[1741181889275,22.0,144.75,144.7,0.14216157]
[1741181889467,2.0,144.77,144.7,0.28432314]
[1741181889665,2.0,144.75,144.7,0.28432314]
[1741181890184,2.0,144.73,144.7,0.14216157]
[1741181890384,2.0,144.72,144.69,0.14216157]
[1741181890674,2.0,144.71,144.69,0.14216157]
[1741181890881,2.0,144.72,144.69,0.14216157]
[1741181891475,2.0,144.71,144.69,0.14216157]
[1741181891777,2.0,144.7,144.68,0.033]
[1741181892660,20.0,144.69,144.68,0.033]
[1741181892872,22.0,144.69,144.68,0.033]
[1741181893878,2.0,144.69,144.68,0.033]
[1741181894079,7.9554,144.7,144.68,0.033]
[1741181894654,9.9554,144.7,144.68,0.033]
[1741181895053,2.0,144.69,144.68,0.033]
[1741181895781,7.9554,144.7,144.68,0.033]
[1741181896490,2.0,144.71,144.68,0.033]
[1741181896664,2.0,144.71,144.68,0.17516157]
[1741181897488,2.0,144.73,144.68,0.033]
[1741181897660,18.64964886,144.74,144.68,0.033]
[1741181897661,2.0,144.72,144.68,0.033]
[1741181897864,2.0,144.71,144.68,0.033]
[1741181898651,24.0731,144.71,144.68,0.033]
[1741181898857,2.0,144.69,144.68,0.033]
[1741181899352,20.64964886,144.69,144.68,0.033]
[1741181899558,20.0,144.66,144.61,6.915]
[1741181899878,2.0,144.64,144.61,6.915]
[1741181900672,2.0,144.64,144.59,24.2053]
[1741181900984,2.0,144.64,144.6,0.14216157]
[1741181901355,2.0,144.64,144.59,24.2053]
[1741181901553,2.0,144.64,144.58,19.9909]
[1741181901758,2.0,144.62,144.58,6.9164]
[1741181902069,2.0,144.63,144.58,6.9164]
[1741181902270,2.0,144.65,144.59,0.28432314]
[1741181902653,2.0,144.65,144.6,6.9156]
[1741181904381,9.6889,144.66,144.6,24.2046]
[1741181904583,9.6889,144.66,144.6,336.2046]
[1741181904965,9.6889,144.66,144.6,318.9156]
[1741181905163,2.0,144.64,144.59,7.05806157]
[1741181905368,20.64964886,144.62,144.55,6.918]
[1741181905564,2.0,144.6,144.55,6.918]
[1741181905767,2.0,144.6,144.54,13.0879]
[1741181905768,2.0,144.56,144.54,6.9183]
[1741181906090,2.0,144.58,144.54,6.9183]
[1741181906784,2.0,144.56,144.53,0.033]
[1741181906985,2.0,144.54,144.53,0.033]
[1741181907786,2.0,144.55,144.53,0.033]
[1741181908093,2.0,144.57,144.53,0.033]
[1741181908265,2.0,144.58,144.53,0.033]
[1741181908675,2.0,144.56,144.53,0.033]
[1741181909266,2.0,144.54,144.53,0.033]
[1741181909871,2.0,144.55,144.53,0.033]
[1741181910195,2.0,144.58,144.53,0.033]
[1741181910360,2.0,144.57,144.53,0.033]
[1741181910565,2.0,144.55,144.53,0.033]
[1741181910768,18.64964886,144.56,144.53,0.033]
[1741181910769,2.0,144.56,144.53,0.033]
[1741181911175,2.0,144.55,144.53,0.033]
[1741181911592,2.0,144.54,144.53,0.033]
[1741181911779,2.0,144.55,144.53,0.033]
[1741181911976,20.64964886,144.54,144.53,0.033]
[1741181913387,2.0,144.54,144.53,0.033]
[1741181913584,2.0,144.55,144.53,0.033]
[1741181913982,2.0,144.54,144.53,0.033]
[1741181915082,4.0755,144.54,144.53,0.033]
[1741181915472,40.64964886,144.51,144.5,500.0]
[1741181916402,2.0,144.51,144.5,500.0]
[1741181916895,2.0,144.53,144.5,506.9204]
[1741181917277,2.0,144.53,144.5,500.0]
[1741181917495,2.0,144.51,144.5,500.0]
[1741181918378,20.64964886,144.51,144.5,500.0]
[1741181918570,28.39114886,144.51,144.5,490.22677968]
[1741181918777,28.39114886,144.51,144.5,145.77723396]
[1741181918994,30.46704886,144.51,144.5,136.67723396]
[1741181919318,30.46704886,144.51,144.5,86.69753397]
[1741181920580,30.46704886,144.51,144.5,86.73053397]
[1741181920779,11.8174,144.51,144.5,86.73053397]
[1741181921183,4.0759,144.51,144.5,86.73053397]
[1741181921378,2.0,144.51,144.5,86.73053397]
[1741181924304,2.0,144.51,144.5,93.65093397]
[1741181924504,2.0,144.52,144.5,86.73053397]
[1741181924713,2.0,144.51,144.5,93.65093397]
[1741181924896,2.0,144.51,144.5,86.73053397]
[1741181927207,3.3839,144.51,144.5,86.73053397]
[1741181928389,2.0,144.51,144.5,86.73053397]
[1741181928603,3.3839,144.51,144.5,86.73053397]
[1741181929299,22.0,144.51,144.5,86.73053397]
[1741181929505,23.3839,144.51,144.5,86.73053397]
[1741181930613,22.0,144.51,144.5,86.73053397]
[1741181930785,2.0,144.51,144.5,86.73053397]
[1741181931110,22.03354886,144.51,144.5,86.73053397]
[1741181931312,22.03354886,144.51,144.5,79.64877707]
[1741181931809,2.0,144.51,144.5,79.64877707]
[1741181932318,22.0,144.51,144.5,79.64877707]
[1741181932805,2.0,144.51,144.5,79.64877707]
[1741181933305,3.3839,144.51,144.5,79.64877707]
[1741181934215,23.3839,144.51,144.5,79.64877707]
[1741181934504,42.06354886,144.51,144.5,79.64877707]
[1741181934711,23.4139,144.51,144.5,79.64877707]
[1741181934922,2.03,144.51,144.5,79.61577707]
[1741181936694,2.03,144.51,144.5,86.53617707]
[1741181937100,2.03,144.51,144.5,79.61577707]
[1741181938618,0.03,144.51,144.5,86.53617707]
[1741181940714,2.03,144.51,144.5,79.61577707]
[1741181941210,0.03,144.51,144.5,79.61577707]
[1741181941421,0.03,144.51,144.5,86.53617707]
[1741181941796,0.03,144.51,144.5,118.77030496]
[1741181941996,0.03,144.51,144.5,130.99200496]
[1741181942201,0.03,144.51,144.5,86.53617707]
[1741181942421,0.03,144.51,144.5,79.61577707]
[1741181942610,2.03,144.51,144.5,79.61577707]
[1741181942808,0.03,144.51,144.5,86.53617707]
[1741181943216,0.03,144.51,144.5,86.67833864]
[1741181943629,0.03,144.51,144.5,118.91246653]
[1741181944504,0.03,144.51,144.5,430.91246653]
[1741181944913,0.0001,144.51,144.5,430.91246653]
[1741181945222,2.0,144.58,144.51,0.14216157]
[1741181945432,2.0,144.57,144.52,0.28432314]
[1741181945613,2.0,144.57,144.52,7.20332314]
[1741181946000,2.0,144.59,144.52,56.59388946]
[1741181946206,1.3829,144.62,144.52,56.59388946]
[1741181946207,2.0,144.58,144.52,7.20332314]
[1741181946715,2.0,144.55,144.5,111.70774339]
[1741181946911,2.0,144.55,144.5,86.53607707]
[1741181947506,2.0,144.56,144.51,0.28432314]
[1741181947703,2.0,144.58,144.53,0.14216157]
[1741181948612,2.0,144.58,144.53,0.28432314]
[1741181948835,2.0,144.58,144.53,20.43850801]
[1741181949508,2.0,144.59,144.54,6.9185]
[1741181949916,2.0,144.59,144.55,0.14216157]
[1741181950124,11.60221209,144.65,144.55,0.28432314]
[1741181950125,2.0,144.6,144.55,0.28432314]
[1741181950508,20.0,144.62,144.55,0.28432314]
[1741181950509,2.0,144.59,144.55,0.14216157]
[1741181950727,2.0,144.59,144.53,6.9187]
[1741181950925,2.0,144.6,144.55,21.0375]
[1741181951241,2.0,144.65,144.6,0.28432314]
[1741181951408,2.0,144.65,144.62,0.28432314]
[1741181951804,2.0,144.63,144.59,0.28432314]
[1741181952013,2.0,144.63,144.58,0.28432314]
[1741181952316,2.0,144.62,144.58,0.28432314]
[1741181952525,2.0,144.62,144.58,312.28432314]
[1741181952708,2.0,144.63,144.58,312.28432314]
[1741181953317,2.0,144.64,144.58,344.51033851]
[1741181953714,20.03,144.66,144.6,0.14216157]
[1741181953715,2.0,144.65,144.6,0.14216157]
[1741181954038,2.0,144.65,144.61,0.14216157]
[1741181954216,2.0,144.64,144.61,0.14216157]
[1741181954418,2.0,144.65,144.61,0.14216157]
[1741181955136,2.0,144.64,144.59,6.9161]
[1741181955323,2.0,144.63,144.59,0.14216157]
[1741181955515,2.0,144.64,144.59,0.14216157]
[1741181955717,2.0,144.65,144.61,0.14216157]
[1741181956335,0.03,144.66,144.63,0.14216157]
[1741181956533,0.03,144.66,144.61,0.14216157]
[1741181956721,2.03,144.66,144.61,0.28432314]
[1741181957115,2.03,144.66,144.61,0.14216157]
[1741181957313,2.0,144.65,144.55,24.45286115]
[1741181957525,2.0,144.63,144.56,32.22601537]
[1741181957724,2.0,144.62,144.57,0.14216157]
[1741181958136,2.0,144.64,144.57,0.28432314]
[1741181958319,20.03,144.66,144.6,0.14216157]
[1741181958320,2.0,144.65,144.6,0.14216157]
[1741181958836,2.0,144.62,144.57,0.14216157]
[1741181959137,2.0,144.62,144.57,0.28432314]
[1741181959936,2.0,144.64,144.59,0.14216157]
[1741181960111,2.0,144.63,144.59,0.14216157]
[1741181960318,2.0,144.64,144.59,0.28432314]
[1741181960517,2.0,144.65,144.59,0.28432314]
[1741181960718,2.0,144.65,144.6,0.14216157]
[1741181960918,0.03,144.66,144.59,0.14216157]
[1741181960919,2.0,144.63,144.59,0.14216157]
[1741181961150,2.0,144.63,144.58,0.28432314]
[1741181961440,2.0,144.65,144.58,32.51033851]
[1741181961818,2.0,144.65,144.61,0.14216157]
[1741181962018,2.03,144.66,144.61,7.05726157]
[1741181962539,0.03,144.62,144.61,7.05726157]
[1741181963056,0.03,144.62,144.6,0.28432314]
[1741181963338,0.03,144.62,144.6,0.14216157]
[1741181963634,0.03,144.62,144.58,312.0]
[1741181963837,2.0,144.58,144.52,39.14541537]
[1741181964018,2.0,144.58,144.53,0.28432314]
[1741181964341,2.0,144.58,144.52,39.14541537]
[1741181964718,2.0,144.59,144.53,0.28432314]
[1741181964919,2.0,144.58,144.52,6.9194]
[1741181965436,2.0,144.58,144.53,0.14216157]
[1741181965946,2.0,144.58,144.52,6.9194]
[1741181966130,2.0,144.58,144.53,0.14216157]
[1741181966440,2.0,144.58,144.52,6.9194]
[1741181966644,2.0,144.58,144.53,0.14216157]
[1741181967036,2.0,144.59,144.53,0.14216157]
[1741181967241,0.04834556,144.58,144.53,0.14216157]
[1741181967539,0.04834556,144.58,144.55,32.36817694]
[1741181967750,0.04834556,144.58,144.56,32.22601537]
[1741181967932,0.04834556,144.58,144.53,0.14216157]
[1741181968134,0.04834556,144.58,144.56,7.20182314]